bitfinex/quotes_BTCUSD_20241010
["timestamp","ask_amount","ask_price","bid_price","bid_amount"]
[1728585941329,0.1824,59240.0,59227.0,0.054186]
[1728585941554,0.1824,59240.0,59228.0,0.168837]
[1728585941555,0.25285089,59234.0,59228.0,0.168837]
[1728585941768,0.417531,59237.0,59227.0,0.050186]
[1728585941993,0.168818,59236.0,59227.0,0.388865]
[1728585942242,0.168818,59236.0,59229.0,0.168835]
[1728585942459,0.25285089,59234.0,59227.0,0.049186]
[1728585942691,0.168828,59232.0,59227.0,0.049186]
[1728585943631,0.337652,59233.0,59227.0,0.049186]
[1728585943874,0.337648,59234.0,59227.0,0.049186]
[1728585943875,0.168827,59232.0,59227.0,0.049186]
[1728585944133,0.337648,59234.0,59227.0,0.049186]
[1728585944134,0.506472,59234.0,59227.0,0.049186]
[1728585944377,0.168831,59231.0,59227.0,0.049186]
[1728585944588,0.168839,59228.0,59227.0,0.049286]
[1728585945101,0.80515818,59228.0,59227.0,0.049286]
[1728585945343,0.005,59224.0,59213.0,0.000814]
[1728585945594,0.98417007,59228.0,59213.0,0.000814]
[1728585945595,0.168878,59214.0,59213.0,0.000814]
[1728585946802,0.3381873,59214.0,59213.0,0.000814]
[1728585947042,0.3381873,59214.0,59213.0,0.001814]
[1728585947542,0.3381873,59214.0,59213.0,0.000814]
[1728585947801,0.3381873,59214.0,59213.0,0.002814]
[1728585948030,0.168878,59214.0,59213.0,0.006814]
[1728585948763,0.168878,59214.0,59213.0,0.002814]
[1728585949261,0.168878,59214.0,59213.0,0.003814]
[1728585949745,0.168878,59214.0,59213.0,0.002814]
[1728585949959,0.168878,59214.0,59213.0,0.000814]
[1728585950458,0.3381873,59214.0,59213.0,0.000814]
[1728585951209,1.16160569,59214.0,59213.0,0.002814]
[1728585951443,1.16160569,59214.0,59213.0,0.005814]
[1728585951444,0.9087548,59214.0,59213.0,0.005814]
[1728585951902,0.9087548,59214.0,59213.0,0.002814]
[1728585952358,0.6127873,59214.0,59213.0,0.005814]
[1728585952591,0.3381873,59214.0,59213.0,0.010814]
[1728585952780,0.3381873,59214.0,59213.0,0.000814]
[1728585953057,0.168878,59214.0,59213.0,0.000814]
[1728585953291,0.337739,59218.0,59213.0,0.005814]
[1728585953510,0.337739,59218.0,59213.0,0.003814]
[1728585953511,0.168878,59214.0,59213.0,0.003814]
[1728585953775,0.168878,59214.0,59213.0,0.006814]
[1728585954008,0.337717,59222.0,59213.0,0.003814]
[1728585954009,0.337728,59220.0,59213.0,0.003814]
[1728585954251,0.168869,59218.0,59213.0,0.003814]
[1728585954463,0.168871,59217.0,59213.0,0.000814]
[1728585954677,0.1693093,59219.0,59213.0,0.173694]
[1728585954899,0.1693093,59219.0,59213.0,0.004814]
[1728585954900,0.5070383,59219.0,59213.0,0.004814]
[1728585955112,0.168872,59217.0,59213.0,0.000814]
[1728585955566,0.168875,59216.0,59213.0,0.001814]
[1728585955783,0.168875,59216.0,59213.0,0.003814]
[1728585955994,0.168875,59216.0,59213.0,0.002814]
[1728585956222,0.168875,59216.0,59213.0,0.001814]
[1728585956409,0.168869,59218.0,59213.0,0.002814]
[1728585956671,0.168872,59217.0,59213.0,0.001814]
[1728585956886,0.1693093,59219.0,59213.0,0.001814]
[1728585957133,0.168874,59216.0,59213.0,0.001814]
[1728585958078,0.3381743,59219.0,59213.0,0.170694]
[1728585958287,0.337735,59218.0,59213.0,0.001814]
[1728585958505,0.168874,59216.0,59213.0,0.001814]
[1728585958717,0.337741,59217.0,59213.0,0.001814]
[1728585958923,0.168874,59216.0,59213.0,0.000814]
[1728585959393,0.168872,59217.0,59213.0,0.000814]
[1728585959626,0.337738,59218.0,59213.0,0.000814]
[1728585959834,0.168874,59216.0,59213.0,0.001814]
[1728585960465,0.3381743,59219.0,59213.0,0.000814]
[1728585960692,0.168874,59216.0,59213.0,0.000814]
[1728585960914,0.168874,59216.0,59213.0,0.001814]
[1728585961132,0.168874,59216.0,59213.0,0.002814]
[1728585961363,0.168874,59216.0,59213.0,0.001814]
[1728585961582,0.337741,59217.0,59213.0,0.001814]
[1728585961799,0.168878,59215.0,59213.0,0.001814]
[1728585962025,0.168867,59218.0,59213.0,0.001814]
[1728585962245,0.337738,59218.0,59213.0,0.001814]
[1728585962471,0.168872,59217.0,59213.0,0.002814]
[1728585962720,0.168874,59216.0,59213.0,0.002814]
[1728585962943,0.168873,59216.0,59213.0,0.001814]
[1728585963163,0.168873,59216.0,59213.0,0.002814]
[1728585963550,0.168873,59216.0,59213.0,0.000814]
[1728585963801,0.168873,59216.0,59213.0,0.001814]
[1728585964170,0.1693093,59219.0,59213.0,0.001814]
[1728585964172,0.16887,59218.0,59213.0,0.001814]
[1728585964370,0.1693093,59219.0,59213.0,0.001814]
[1728585964725,0.195028,59227.0,59217.0,0.2959675]
[1728585964726,0.001628,59227.0,59217.0,0.2959675]
[1728585964921,0.001628,59227.0,59226.0,0.168844]
[1728585965992,0.001628,59227.0,59226.0,0.173844]
[1728585966640,0.001628,59227.0,59226.0,0.174844]
[1728585966844,0.001628,59227.0,59226.0,0.173844]
[1728585967485,0.001628,59227.0,59226.0,0.174844]
[1728585967687,0.001628,59227.0,59226.0,0.001]
[1728585968130,0.170469,59227.0,59226.0,0.001]
[1728585968773,0.3397783,59227.0,59226.0,0.001]
[1728585969698,0.3397783,59227.0,59225.0,0.03]
[1728585969699,0.168844,59226.0,59225.0,0.03]
[1728585969890,0.170471,59227.0,59226.0,0.001]
[1728585970099,0.170471,59227.0,59225.0,0.03]
[1728585970100,0.168844,59226.0,59225.0,0.03]
[1728585971222,0.17047,59227.0,59225.0,0.03]
[1728585971451,0.168844,59226.0,59225.0,0.03]
[1728585971665,0.168844,59226.0,59225.0,0.031]
[1728585971666,0.33770171,59226.0,59225.0,0.031]
[1728585971879,0.001628,59227.0,59226.0,0.173844]
[1728585972837,0.168844,59226.0,59225.0,0.032]
[1728585973057,0.168844,59226.0,59225.0,0.03]
[1728585973772,0.3381533,59226.0,59225.0,0.03]
[1728585974725,0.3381533,59226.0,59225.0,0.031]
[1728585975901,0.3381533,59226.0,59225.0,0.03]
[1728585976878,0.3381533,59226.0,59225.0,0.031]
[1728585977361,0.3381533,59226.0,59225.0,0.03]
[1728585978812,0.1693093,59226.0,59225.0,0.03]
[1728585979050,0.170471,59227.0,59225.0,0.03]
[1728585979051,0.001628,59227.0,59226.0,0.168844]
[1728585980734,0.001628,59227.0,59226.0,0.4698115]
[1728585980994,0.001628,59227.0,59226.0,0.7176208]
[1728585981267,0.001628,59227.0,59226.0,1.0000208]
[1728585981521,0.001628,59227.0,59226.0,1.05217181]
[1728585981753,0.001628,59227.0,59226.0,1.07624732]
[1728585981983,0.001628,59227.0,59226.0,1.09832283]
[1728585982249,0.001628,59227.0,59226.0,1.0030208]
[1728585982490,0.001628,59227.0,59226.0,1.0040208]
[1728585982735,0.001628,59227.0,59226.0,1.07971389]
[1728585982968,0.001628,59227.0,59226.0,1.08071389]
[1728585983199,0.001628,59227.0,59226.0,1.08671389]
[1728585983427,0.001628,59227.0,59226.0,1.0060208]
[1728585983660,0.001628,59227.0,59226.0,1.05646537]
[1728585983908,0.001628,59227.0,59226.0,1.06446537]
[1728585984394,0.001628,59227.0,59226.0,1.0140208]
[1728585985669,0.001628,59227.0,59226.0,1.0160208]
[1728585987072,0.001628,59227.0,59226.0,1.0140208]
[1728585988489,0.001628,59227.0,59226.0,1.0160208]
[1728585988767,0.001628,59227.0,59226.0,1.0140208]
[1728585990878,0.001628,59227.0,59226.0,0.4858115]
[1728585991132,0.001628,59227.0,59226.0,0.189844]
[1728585991624,0.001628,59227.0,59226.0,0.3591533]
[1728585991858,0.001628,59227.0,59226.0,0.4531533]
[1728585992094,0.001628,59227.0,59226.0,0.6351533]
[1728585992325,0.001628,59227.0,59226.0,0.6331533]
[1728585992826,0.001628,59227.0,59226.0,0.6251533]
[1728585993046,0.001628,59227.0,59226.0,0.6311533]
[1728585993518,0.002628,59227.0,59226.0,0.279844]
[1728585993751,0.001628,59227.0,59226.0,0.279844]
[1728585993987,0.001628,59227.0,59226.0,0.282844]
[1728585994234,0.001628,59227.0,59226.0,0.276844]
[1728585994688,0.001628,59227.0,59226.0,0.4461533]
[1728585994909,0.001628,59227.0,59226.0,0.4431533]
[1728585995139,0.002628,59227.0,59226.0,0.4431533]
[1728585995359,0.001628,59227.0,59226.0,0.4441533]
[1728585995607,0.001628,59227.0,59226.0,0.4501533]
[1728585995853,0.001628,59227.0,59226.0,0.5257533]
[1728585996068,0.001628,59227.0,59226.0,0.5317533]
[1728585996291,0.001628,59227.0,59226.0,0.78460419]
[1728585996562,0.001628,59227.0,59226.0,0.7492533]
[1728585996814,0.001628,59227.0,59226.0,0.7502533]
[1728585997050,0.001628,59227.0,59226.0,0.7492533]
[1728585997280,0.001628,59227.0,59226.0,0.7512533]
[1728585997494,0.001628,59227.0,59226.0,0.7432533]
[1728585997714,0.001628,59227.0,59226.0,0.7512533]
[1728585998408,0.001628,59227.0,59226.0,0.7592533]
[1728585999805,0.001628,59227.0,59226.0,0.7362533]
[1728586000516,0.001628,59227.0,59226.0,0.7370673]
[1728586002083,0.001628,59227.0,59226.0,0.7290673]
[1728586002524,0.001628,59227.0,59226.0,0.92628866]
[1728586002775,0.001628,59227.0,59226.0,0.93828866]
[1728586002976,0.001628,59227.0,59226.0,0.93628866]
[1728586003205,0.001628,59227.0,59226.0,0.93028866]
[1728586003442,0.001628,59227.0,59226.0,0.73578866]
[1728586003892,0.001628,59227.0,59226.0,0.73278866]
[1728586004160,0.001628,59227.0,59226.0,0.74178866]
[1728586004399,0.001628,59227.0,59226.0,0.72378866]
[1728586004613,0.001628,59227.0,59226.0,0.65718866]
[1728586005053,0.001628,59227.0,59226.0,0.64118866]
[1728586005177,0.001628,59227.0,59226.0,0.183658]
[1728586005637,0.001628,59227.0,59226.0,0.192658]
[1728586006292,0.001628,59227.0,59226.0,0.187658]
[1728586006523,0.001628,59227.0,59226.0,0.183658]
[1728586006745,0.001628,59227.0,59226.0,0.182658]
[1728586007188,0.001628,59227.0,59226.0,0.180658]
[1728586007850,0.001628,59227.0,59226.0,0.174658]
[1728586009622,0.001628,59227.0,59226.0,0.169658]
[1728586010050,0.001628,59227.0,59226.0,0.000814]
[1728586010269,0.170469,59227.0,59226.0,0.000814]
[1728586010480,0.246169,59227.0,59226.0,0.000814]
[1728586010917,0.4154783,59227.0,59226.0,0.000814]
[1728586011790,0.2466373,59227.0,59226.0,0.000814]
[1728586012000,0.4154783,59227.0,59226.0,0.000814]
[1728586012223,0.4154783,59227.0,59226.0,0.001814]
[1728586012452,0.2466373,59227.0,59226.0,0.001814]
[1728586013137,0.2466373,59227.0,59226.0,0.170658]
[1728586013358,0.2496373,59227.0,59226.0,0.170658]
[1728586013778,0.2516373,59227.0,59226.0,0.170658]
[1728586014014,0.2546373,59227.0,59226.0,0.171658]
[1728586014238,0.009628,59227.0,59226.0,0.36887936]
[1728586014894,0.004628,59227.0,59226.0,0.36787936]
[1728586015111,0.001628,59227.0,59226.0,0.36687936]
[1728586015335,0.007628,59227.0,59226.0,0.36787936]
[1728586016260,0.010628,59227.0,59226.0,0.36787936]
[1728586016718,0.010628,59227.0,59226.0,0.37287936]
[1728586018022,0.010628,59227.0,59226.0,0.175658]
[1728586020067,0.010628,59227.0,59226.0,0.17818374]
[1728586020511,0.001628,59227.0,59226.0,0.174658]
[1728586020941,0.005628,59227.0,59226.0,0.174658]
[1728586021153,0.005628,59227.0,59226.0,0.4439673]
[1728586021154,0.003628,59227.0,59226.0,0.4439673]
[1728586021623,0.003628,59227.0,59226.0,0.4449673]
[1728586021856,0.003628,59227.0,59226.0,0.275658]
[1728586022295,0.001628,59227.0,59226.0,0.275658]
[1728586022519,0.002628,59227.0,59226.0,0.275658]
[1728586022750,0.002628,59227.0,59226.0,0.274658]
[1728586022978,0.001628,59227.0,59226.0,0.177658]
[1728586023462,0.001628,59227.0,59226.0,0.178658]
[1728586023678,0.001628,59227.0,59226.0,0.182658]
[1728586023884,0.001628,59227.0,59226.0,0.178658]
[1728586024099,0.001628,59227.0,59226.0,0.177658]
[1728586024309,0.001628,59227.0,59226.0,0.180658]
[1728586024746,0.001628,59227.0,59226.0,0.177658]
[1728586025409,0.001628,59227.0,59226.0,0.4519673]
[1728586025652,0.25285089,59243.0,59242.0,0.173799]
[1728586025867,0.25285089,59243.0,59242.0,0.64032966]
[1728586026099,0.25285089,59249.0,59242.0,0.64032966]
[1728586026100,0.25285089,59249.0,59248.0,0.173782]
[1728586026326,0.25285089,59249.0,59248.0,0.37100336]
[1728586026557,0.25285089,59256.0,59253.0,0.168767]
[1728586027202,0.168745,59261.0,59253.0,0.168767]
[1728586027637,0.004628,59254.0,59253.0,0.168767]
[1728586028106,0.005628,59254.0,59253.0,0.169767]
[1728586029029,0.002628,59254.0,59253.0,0.169767]
[1728586029262,0.25285089,59258.0,59253.0,0.169767]
[1728586029263,0.16876,59256.0,59253.0,0.169767]
[1728586029703,0.337505,59259.0,59253.0,0.169767]
[1728586029918,0.168756,59257.0,59253.0,0.168767]
[1728586030152,0.0762,59263.0,59260.0,0.168747]
[1728586030153,0.244939,59263.0,59260.0,0.168747]
[1728586030357,0.244939,59263.0,59258.0,0.337503]
[1728586030358,0.1693093,59262.0,59258.0,0.337503]
[1728586030573,0.1693093,59262.0,59250.0,0.29572857]
[1728586030574,0.0762,59263.0,59260.0,0.168746]
[1728586030788,0.0762,59263.0,59253.0,0.338532]
[1728586030789,0.0762,59263.0,59262.0,0.168742]
[1728586031476,0.36265971,59268.0,59254.0,0.29572857]
[1728586031477,0.168726,59268.0,59254.0,0.29572857]
[1728586031720,0.3380373,59267.0,59264.0,0.168733]
[1728586031927,0.1693093,59267.0,59263.0,0.337475]
[1728586032159,0.3380373,59267.0,59263.0,0.337475]
[1728586032392,0.3380373,59267.0,59264.0,0.168736]
[1728586032621,0.001,59263.0,59259.0,0.337498]
[1728586032845,0.337462,59266.0,59259.0,0.337498]
[1728586032846,0.168734,59265.0,59261.0,0.168743]
[1728586033053,0.1693093,59265.0,59264.0,0.168736]
[1728586034142,0.1693093,59265.0,59260.0,0.168745]
[1728586034143,0.168736,59264.0,59260.0,0.168745]
[1728586034361,0.1703093,59265.0,59264.0,0.001]
[1728586034800,0.1703093,59265.0,59264.0,0.169736]
[1728586035083,0.1703093,59265.0,59264.0,0.001]
[1728586035294,0.3390423,59265.0,59264.0,0.002]
[1728586035540,0.3380423,59265.0,59264.0,0.001]
[1728586035740,0.3380423,59265.0,59261.0,0.168744]
[1728586035957,0.3390423,59265.0,59264.0,0.001]
[1728586036181,0.3380423,59265.0,59264.0,0.001]
[1728586036604,0.3390423,59265.0,59264.0,0.001]
[1728586037682,0.1703093,59265.0,59264.0,0.001]
[1728586037907,0.3390423,59265.0,59264.0,0.001]
[1728586039245,0.1703093,59265.0,59264.0,0.001]
[1728586039493,0.3390423,59265.0,59264.0,0.001]
[1728586040813,0.3390423,59265.0,59264.0,0.170736]
[1728586040814,0.1703093,59265.0,59264.0,0.170736]
[1728586041022,0.1703093,59265.0,59264.0,0.002]
[1728586041231,0.001,59265.0,59264.0,0.170736]
[1728586042574,0.42157189,59270.0,59266.0,0.168728]
[1728586042781,0.42157189,59270.0,59266.0,0.337461]
[1728586042782,0.1693093,59269.0,59266.0,0.337461]
[1728586043021,0.1693093,59269.0,59268.0,0.168725]
[1728586043276,0.083,59275.0,59267.0,0.337455]
[1728586043515,0.25285089,59274.0,59273.0,0.16871]
[1728586043780,0.337378,59281.0,59264.0,0.001]
[1728586043781,0.337347,59286.0,59272.0,0.005]
[1728586043971,0.199826,59289.0,59282.0,0.168685]
[1728586043972,0.25285089,59283.0,59282.0,0.168685]
[1728586044495,0.168685,59282.0,59278.0,0.168694]
[1728586044683,0.337359,59284.0,59278.0,0.337392]
[1728586044887,0.337359,59284.0,59279.0,0.168692]
[1728586045123,0.337359,59284.0,59271.0,0.337432]
[1728586045124,0.337378,59281.0,59271.0,0.337432]
[1728586045333,0.001628,59270.0,59269.0,0.168722]
[1728586045772,0.001628,59270.0,59269.0,0.173722]
[1728586046944,0.002628,59270.0,59269.0,0.173722]
[1728586050260,0.002628,59270.0,59269.0,0.4430313]
[1728586050482,0.002628,59270.0,59269.0,0.7190554]
[1728586051337,0.002628,59270.0,59269.0,0.7270554]
[1728586051570,0.002628,59270.0,59269.0,0.4786461]
[1728586051799,0.001628,59270.0,59269.0,0.4786461]
[1728586052029,0.001628,59270.0,59269.0,0.4866461]
[1728586052686,0.001628,59270.0,59269.0,0.4786461]
[1728586053110,0.001628,59270.0,59269.0,0.4746461]
[1728586053591,0.001628,59270.0,59269.0,0.4776461]
[1728586054286,0.001628,59270.0,59269.0,0.4706461]
[1728586055030,0.001628,59270.0,59269.0,0.273722]
[1728586055276,0.001628,59270.0,59269.0,0.168722]
[1728586055521,0.002628,59270.0,59269.0,0.168722]
[1728586055777,0.002628,59270.0,59269.0,0.173722]
[1728586055778,0.001628,59270.0,59269.0,0.173722]
[1728586056016,0.002628,59270.0,59269.0,0.173722]
[1728586056259,0.001628,59270.0,59269.0,0.173722]
[1728586056763,0.002628,59270.0,59269.0,0.173722]
[1728586059377,0.002628,59270.0,59269.0,0.37402034]
[1728586059615,0.002628,59270.0,59269.0,0.6190554]
[1728586060788,0.002628,59270.0,59269.0,0.6250554]
[1728586061017,0.002628,59270.0,59269.0,0.7250554]
[1728586061248,0.002628,59270.0,59269.0,0.7190554]
[1728586061487,0.002628,59270.0,59269.0,0.7220554]
[1728586061488,0.001628,59270.0,59269.0,0.7220554]
[1728586061982,0.001628,59270.0,59269.0,0.7280554]
[1728586062224,0.001628,59270.0,59269.0,0.7220554]
[1728586062680,0.001628,59270.0,59269.0,0.7250554]
[1728586063132,0.001628,59270.0,59269.0,0.7310554]
[1728586064304,0.001628,59270.0,59269.0,0.5617461]
[1728586064537,0.001628,59270.0,59269.0,0.285722]
[1728586066171,0.001628,59270.0,59269.0,0.6519554]
[1728586066415,0.001628,59270.0,59269.0,0.8398554]
[1728586066651,0.001628,59270.0,59269.0,1.1189795]
[1728586067409,0.001628,59270.0,59269.0,0.9220554]
[1728586067644,0.001628,59270.0,59269.0,1.1129795]
[1728586067878,0.001628,59270.0,59269.0,0.9100554]
[1728586068116,0.001628,59270.0,59269.0,0.9280554]
[1728586068349,0.001628,59270.0,59269.0,1.1249795]
[1728586069274,0.001628,59270.0,59269.0,0.9280554]
[1728586069784,0.001628,59270.0,59269.0,1.1249795]
[1728586070021,0.001628,59270.0,59269.0,1.1229795]
[1728586071008,0.001628,59270.0,59269.0,1.1249795]
[1728586071247,0.001628,59270.0,59269.0,1.1229795]
[1728586071441,0.001628,59270.0,59269.0,1.1249795]
[1728586071714,0.001628,59270.0,59269.0,1.1479795]
[1728586071948,0.001628,59270.0,59269.0,1.19817196]
[1728586072410,0.001628,59270.0,59269.0,1.2232682]
[1728586072631,0.001628,59270.0,59269.0,1.22357688]
[1728586072864,0.001628,59270.0,59269.0,1.1479795]
[1728586073099,0.001628,59270.0,59269.0,1.22357641]
[1728586073365,0.001628,59270.0,59269.0,1.1479795]
[1728586073603,0.001628,59270.0,59269.0,1.22357333]
[1728586074768,0.25285089,59281.0,59280.0,0.005]
[1728586074998,0.25285089,59281.0,59280.0,0.5399234]
[1728586075444,0.00163,59287.0,59286.0,0.168673]
[1728586075677,0.00163,59287.0,59286.0,0.3655971]
[1728586076369,0.00163,59287.0,59286.0,0.3705971]
[1728586076826,0.00163,59287.0,59286.0,0.3715971]
[1728586077267,0.00163,59287.0,59286.0,0.3705971]
[1728586077498,0.00163,59287.0,59286.0,0.5399064]
[1728586077728,0.00163,59287.0,59286.0,0.5409064]
[1728586078865,0.00163,59287.0,59286.0,0.5399064]
[1728586079090,0.00163,59287.0,59286.0,0.3705971]
[1728586079312,0.00163,59287.0,59286.0,0.173673]
[1728586080804,0.00163,59287.0,59275.0,0.005]
[1728586081091,0.00163,59287.0,59264.0,0.52155537]
[1728586081092,0.168678,59285.0,59281.0,0.42153789]
[1728586081318,0.168678,59285.0,59279.0,0.168692]
[1728586081319,0.168683,59283.0,59279.0,0.168692]
[1728586081540,0.168683,59283.0,59278.0,0.168695]
[1728586081783,0.337365,59283.0,59276.0,0.168701]
[1728586082026,0.337365,59283.0,59271.0,0.168713]
[1728586082027,0.1693093,59282.0,59271.0,0.168713]
[1728586082267,0.1693093,59282.0,59275.0,0.01]
[1728586082268,0.168704,59276.0,59275.0,0.01]
[1728586082549,0.168704,59276.0,59264.0,0.25285089]
[1728586082550,0.168733,59265.0,59264.0,0.25285089]
[1728586082818,0.3380423,59265.0,59264.0,0.25285089]
[1728586083042,0.3380423,59265.0,59252.0,0.25285089]
[1728586083043,0.16875,59259.0,59253.0,0.005]
[1728586083269,0.16875,59259.0,59253.0,0.337532]
[1728586083515,0.16875,59259.0,59258.0,0.000814]
[1728586083744,0.337479,59263.0,59258.0,0.000814]
[1728586083975,0.1693093,59262.0,59258.0,0.000814]
[1728586084204,0.168749,59260.0,59258.0,0.001814]
[1728586084436,0.1693093,59262.0,59258.0,0.001814]
[1728586084677,0.16875,59259.0,59258.0,0.000814]
[1728586084909,0.6109593,59259.0,59258.0,0.001814]
[1728586085386,0.6199593,59259.0,59258.0,0.001814]
[1728586085850,0.6199593,59259.0,59258.0,0.000814]
[1728586086081,0.8078834,59259.0,59258.0,0.000814]
[1728586086327,0.8108834,59259.0,59258.0,0.000814]
[1728586086555,0.9803261,59259.0,59258.0,0.000814]
[1728586086792,0.783402,59259.0,59258.0,0.001814]
[1728586087014,0.783402,59259.0,59258.0,0.000814]
[1728586087015,1.00680241,59259.0,59258.0,0.000814]
[1728586087242,1.02880241,59259.0,59258.0,0.000814]
[1728586087478,1.03080241,59259.0,59258.0,0.000814]
[1728586087710,1.03080241,59259.0,59241.0,0.25285089]
[1728586087711,0.168799,59242.0,59241.0,0.25285089]
[1728586087947,0.5350324,59242.0,59241.0,0.25285089]
[1728586088441,0.337621,59238.0,59235.0,0.25285089]
[1728586088697,0.002,59249.0,59235.0,0.25285089]
[1728586088698,0.0069,59251.0,59235.0,0.25285089]
[1728586088933,0.168791,59245.0,59241.0,0.168799]
[1728586089183,0.61736019,59249.0,59244.0,0.168792]
[1728586089184,0.168783,59248.0,59244.0,0.168792]
[1728586089416,0.61736019,59249.0,59237.0,0.25785089]
[1728586089417,0.1952,59249.0,59237.0,0.25785089]
[1728586089655,0.0069,59251.0,59244.0,0.168791]
[1728586089871,0.168783,59248.0,59244.0,0.168791]
[1728586090120,0.168783,59248.0,59241.0,0.341602]
[1728586090121,0.0069,59251.0,59248.0,0.168779]
[1728586090373,0.337522,59256.0,59250.0,0.168774]
[1728586090610,0.337522,59256.0,59247.0,0.50635]
[1728586090611,0.002,59248.0,59247.0,0.50635]
[1728586091448,0.003,59248.0,59247.0,0.337566]
[1728586091545,0.003,59248.0,59247.0,0.50635]
[1728586091775,0.168772,59252.0,59248.0,0.168781]
[1728586092495,0.168768,59253.0,59249.0,0.168778]
[1728586092771,0.168768,59253.0,59248.0,0.337563]
[1728586092772,0.168776,59250.0,59246.0,0.168787]
[1728586093023,0.337562,59249.0,59241.0,0.000814]
[1728586093266,0.168792,59245.0,59243.0,0.25285089]
[1728586093481,0.168797,59243.0,59241.0,0.000814]
[1728586093967,0.168788,59246.0,59242.0,0.168798]
[1728586094206,0.16879,59245.0,59242.0,0.168798]
[1728586094678,0.16879,59245.0,59242.0,0.168898]
[1728586094917,0.5068773,59248.0,59242.0,0.0001]
[1728586095132,0.173796,59243.0,59242.0,0.0001]
[1728586095362,0.337577,59246.0,59242.0,0.0011]
[1728586095363,0.168794,59244.0,59242.0,0.0011]
[1728586095619,0.344577,59246.0,59245.0,0.16879]
[1728586095620,0.007,59246.0,59245.0,0.16879]
[1728586095872,0.168777,59250.0,59243.0,0.337591]
[1728586096104,0.168777,59250.0,59242.0,0.0001]
[1728586096105,0.168788,59246.0,59242.0,0.0001]
[1728586096587,0.16979,59245.0,59242.0,0.168898]
[1728586096810,0.16879,59245.0,59242.0,0.0001]
[1728586097028,0.16879,59245.0,59242.0,0.168898]
[1728586097251,0.16879,59245.0,59243.0,0.001]
[1728586097480,0.168779,59249.0,59244.0,0.337586]
[1728586097714,0.01,59246.0,59245.0,0.16979]
[1728586097963,0.01,59246.0,59245.0,0.16879]
[1728586098186,0.1969241,59264.0,59247.0,0.337569]
[1728586098408,0.1969241,59264.0,59242.0,0.338694]
[1728586098409,0.01,59245.0,59244.0,0.168793]
[1728586098844,0.01,59245.0,59243.0,0.006]
[1728586098845,0.168775,59251.0,59247.0,0.168782]
[1728586099322,0.337539,59253.0,59248.0,0.168781]
[1728586099548,0.1693093,59256.0,59247.0,0.337566]
[1728586099776,0.1,59265.0,59247.0,0.337566]
[1728586099777,0.25285089,59259.0,59250.0,0.1969241]
[1728586100019,0.5068163,59258.0,59252.0,0.168769]
[1728586100232,0.168759,59256.0,59252.0,0.168769]
[1728586100679,0.5068163,59258.0,59249.0,0.337553]
[1728586100910,0.3380623,59258.0,59254.0,0.168763]
[1728586101164,0.25485089,59275.0,59244.0,0.25385089]
[1728586101165,0.52245089,59267.0,59256.0,0.1969241]
[1728586101406,0.50087989,59267.0,59263.0,0.168738]
[1728586101676,0.50087989,59267.0,59261.0,0.1969241]
[1728586101677,0.25285089,59267.0,59266.0,0.16873]
[1728586102168,0.25285089,59267.0,59264.0,0.337469]
[1728586102169,0.168713,59272.0,59268.0,0.168723]
[1728586102415,0.168722,59269.0,59265.0,0.16873]
[1728586102671,0.168714,59272.0,59265.0,0.337465]
[1728586102914,0.168723,59269.0,59265.0,0.168732]
[1728586103400,0.168717,59271.0,59267.0,0.168726]
[1728586103631,0.172722,59269.0,59264.0,0.337472]
[1728586103859,0.168722,59269.0,59264.0,0.337472]
[1728586104338,0.16873,59266.0,59265.0,0.001]
[1728586104570,0.3380393,59266.0,59265.0,0.001]
[1728586105994,0.168733,59265.0,59264.0,0.001]
[1728586106214,0.3380423,59265.0,59264.0,0.001]
[1728586106682,0.168751,59259.0,59257.0,0.25285089]
[1728586106953,0.168762,59255.0,59252.0,0.168769]
[1728586107188,0.168762,59255.0,59250.0,0.25785089]
[1728586107189,0.168762,59255.0,59251.0,0.168773]
[1728586107421,0.1693093,59259.0,59257.0,0.168754]
[1728586107657,0.337479,59263.0,59250.0,0.342547]
[1728586107892,0.25285089,59260.0,59255.0,0.168761]
[1728586108133,0.1693093,59262.0,59255.0,0.168761]
[1728586108134,0.168751,59259.0,59255.0,0.168761]
[1728586108356,0.168754,59258.0,59255.0,0.168761]
[1728586108579,0.3375,59260.0,59255.0,0.168761]
[1728586108808,0.16876,59256.0,59253.0,0.168766]
[1728586109033,0.1693093,59259.0,59250.0,0.25785089]
[1728586109264,0.001,59255.0,59251.0,0.005]
[1728586109517,0.001,59255.0,59254.0,0.168764]
[1728586109741,0.25285089,59261.0,59253.0,0.337532]
[1728586109742,0.168749,59260.0,59256.0,0.168758]
[1728586109976,0.168751,59259.0,59256.0,0.168758]
[1728586111342,0.337485,59262.0,59253.0,0.337532]
[1728586111572,0.168749,59260.0,59256.0,0.168758]
[1728586111799,0.1693093,59261.0,59256.0,0.168758]
[1728586112088,0.168752,59259.0,59256.0,0.168758]
[1728586112325,0.009,59259.0,59256.0,0.001]
[1728586112564,0.168755,59258.0,59256.0,0.001]
[1728586112798,0.188751,59259.0,59256.0,0.002]
[1728586113026,0.011,59259.0,59256.0,0.169758]
[1728586113255,0.011,59259.0,59258.0,0.168753]
[1728586113500,0.1693093,59261.0,59251.0,0.25785089]
[1728586113501,0.5068013,59261.0,59251.0,0.25785089]
[1728586113732,0.1693093,59261.0,59251.0,0.25785089]
[1728586113957,0.1693093,59261.0,59256.0,0.002]
[1728586113958,0.009,59259.0,59256.0,0.002]
[1728586114185,0.009,59259.0,59256.0,0.169757]
[1728586114186,0.168752,59259.0,59256.0,0.169757]
[1728586114404,0.168752,59259.0,59256.0,0.168757]
[1728586114641,0.168752,59259.0,59255.0,0.168761]
[1728586114839,0.3380543,59261.0,59257.0,0.168753]
[1728586115005,0.1693093,59261.0,59253.0,0.337531]
[1728586115238,0.168748,59260.0,59257.0,0.168755]